Cogmind - Beta 9.2 @@@ ROGUE MODE // 2019.11.20 @ 15:08:57 Player: Cassie Rose Result: Destroyed by G-47 Trooper with Particle Gun Performance ------------- Evolutions (0) 0 Regions Visited (2) 400 Robots Destroyed (30) 150 Value Destroyed (724) 724 Prototype IDs (4) 80 Alien Tech Used (0) 0 Bonus (-37) -37 TOTAL SCORE: 1317 Bonus ------- Friendly Fire -37 Cogmind --------- Core Integrity 0/250 Matter 266/300 Energy 100/100 System Corruption 0% Temperature Cool (146) Movement Rolling (110) Ox1 Location -10/Mines Parts ------- > --- POWER (1) -------- (None) > --- PROPULSION (2) --- Compact Wheel > --- UTILITY (2) ------ Large Storage Unit > --- WEAPON (2) ------- Beam Cannon > --- INVENTORY (10) --- Ion Engine Large Storage Unit Signal Interpreter Terrain Scanner Datajack Peak State ------------ > --- POWER ------------ Light Ion Engine > --- PROPULSION ------- Wheel Wheel > --- UTILITY ---------- Small Storage Unit Improved Terrain Scanner > --- WEAPON ----------- EM Pulse Gun Assault Rifle > --- INVENTORY -------- Ion Engine Small Laser [Rating: 8] Favorites ----------- Power Ion Engine Engine Ion Engine Propulsion Compact Wheel Leg Aluminum Leg Wheel Compact Wheel Utility Small Storage Unit Device Improved Terrain Scanner Storage Small Storage Unit Weapon EM Pulse Gun Energy Gun EM Pulse Gun Energy Cannon Beam Cannon Ballistic Gun Assault Rifle Ballistic Cannon Light Cannon Launcher Grenade Launcher Build | -11 -10 -10 ------- Run | Scr Mat Min Slots Evolved . | . . . Power . | . . . Propulsion . | . . . Utility . | . . . Weapon . | . . . Parts Attached 29 | 7 21 1 Power 5 | 1 4 . Engine 5 | 1 4 . Core . | . . . Reactor . | . . . Propulsion 12 | 2 10 . Treads . | . . . Leg 6 | . 6 . Wheel 6 | 2 4 . Hover . | . . . Flight . | . . . Utility 3 | 2 1 . Device 1 | 1 . . Storage 2 | 1 1 . Processor . | . . . Hackware . | . . . Protection . | . . . Artifact . | . . . Weapon 9 | 2 6 1 Energy Gun 4 | 1 3 . Energy Cannon 1 | . . 1 Ballistic Gun 1 | 1 . . Ballistic Cannon 1 | . 1 . Launcher 2 | . 2 . Special Weapon . | . . . Impact Weapon . | . . . Slashing Weapon . | . . . Piercing Weapon . | . . . Special Melee Weapon . | . . . Unidentified Prototypes . | . . . Parts Lost 14 | . 10 4 Power 3 | . 2 1 Propulsion 4 | . 3 1 Utility 1 | . 1 . Weapon 6 | . 4 2 Highest Loss Streak 4 | . 4 4 Average Slot Usage (%) 78 | . 77 85 Engine 14 | . 14 14 Leg 8 | . 8 . Wheel 15 | . 14 28 Device 3 | . 3 . Storage 14 | . 14 14 Energy Gun 9 | . 10 . Ballistic Gun 3 | . 4 . Ballistic Cannon 3 | . 3 14 Launcher 3 | . 3 14 Naked Turns . | . . . Heaviest Build 27 | 12 27 27 Greatest Support 32 | 20 32 32 Greatest Overweight (x) 4 | . 4 . Average Overweight (x) . | . . . Largest Inventory Capacity 12 | 6 12 10 Average Capacity 7 | 5 7 10 Most Carried 9 | 3 9 6 Average Carried 4 | 1 5 5 Final Capacity 10 | 6 10 10 Final Carried 6 | 2 6 5 Class Distribution -------------------- 100% | Mutant Dominant Class ---------------- Mutant | -10/Materials Mutant | -10/Mines Resources | -11 -10 -10 ----------- Run | Scr Mat Min Matter Collected 588 | 273 315 . Remotely . | . . . Salvage Created 1061 | 204 857 . Parts 73 | 20 53 . Haulers Intercepted 2 | . 2 . Recyclers Shooed . | . . . Parts Field Recycled . | . . . Retrieved Matter . | . . . Parts Self-Destructed . | . . . Prevented . | . . . Kills | -11 -10 -10 ------- Run | Scr Mat Min Combat Hostiles Destroyed 17 | . 17 . Guns 4 | . 4 . Cannons 6 | . 6 . AOE 6 | . 6 . Classes Destroyed 6 | 3 3 . Worker 1 | 1 . . Tunneler 5 | 5 . . Hauler 2 | . 2 . Recycler 2 | 1 1 . Watcher 3 | . 3 . Grunt 17 | . 17 . Best Kill Streak 4 | 4 3 . Combat Bots Only 3 | . 3 . Max Kills in Single Turn 3 | 1 3 . Gunslinging . | . . . Exploded 3 | . 3 . Melee . | . . . Uniques/NPCs Destroyed . | . . . Combat | -11 -10 -10 -------- Run | Scr Mat Min Damage Taken 1355 | 10 1004 341 Core 260 | 5 190 65 Absorbed by Shields . | . . . Core Remaining (%) 98 | 98 . . Volleys Fired 155 | 27 115 13 Largest 2 | 2 2 1 Hottest 75 | 60 75 60 Shots Fired 159 | 28 118 13 Gun 118 | 28 90 . Cannon 38 | . 25 13 Launcher 3 | . 3 . Special . | . . . Kinetic 37 | 1 25 11 Thermal 27 | . 25 2 Explosive 3 | . 3 . Electromagnetic 92 | 27 65 . Robot Hit Streak 12 | 6 12 8 Robot Miss Streak 3 | 2 3 1 Penetration Max . | . . . Secondary Targets . | . . . Shots Hit Robots 113 | 20 83 10 Core Hits 47 | 8 38 1 Critical Hits 1 | . . 1 Critical Kills . | . . . Critical Parts Destroyed 1 | . . 1 Melee Attacks . | . . . Impact . | . . . Slashing . | . . . Piercing . | . . . Sneak Attacks . | . . . Combat Hostiles . | . . . Follow-up Attacks . | . . . Damage Inflicted 2034 | 328 1527 179 Guns 1102 | 294 808 . Cannons 538 | . 359 179 Explosions 394 | 34 360 . Melee . | . . . Ramming . | . . . Kinetic 521 | . 359 162 Thermal 474 | 34 423 17 Explosive 137 | . 137 . Electromagnetic 902 | 294 608 . Impact . | . . . Slashing . | . . . Piercing . | . . . Highest Corruption . | . . . Average Corruption . | . . . Corruption Purged . | . . . Overload Shots . | . . . Overflow Damage 17 | 9 . 8 Projectiles 8 | . . 8 Explosions 9 | 9 . . Melee . | . . . Knockbacks 5 | . 5 . Impact . | . . . Kinetic 5 | . 5 . Secondary . | . . . Self-Inflicted Damage 168 | 10 158 . Shots 5 | 1 4 . Rammed . | . . . Targets Rammed . | . . . Kicked . | . . . Crushed . | . . . Highest Temperature 122 | 12 99 122 Average Temperature 30 | 12 30 32 Received Heat Transfer 663 | . 474 189 Siege Activations . | . . . Robots Corrupted 1 | . 1 . Combat Hostiles 1 | . 1 . Parts Fried 5 | 1 4 . Impact Corruptions . | . . . Robots Melted . | . . . Combat Hostiles . | . . . Parts Melted . | . . . Heat Transferred 737 | 50 650 37 Parts Sabotaged . | . . . Parts Stolen . | . . . Parts Stripped . | . . . Power Chain Reactions 5 | 1 4 . Missiles Intercepted . | . . . Alert | -11 -10 -10 ------- Run | Scr Mat Min Peak Influence 214 | 30 214 63 Average Influence 61 | 11 69 60 Maximum Alert Level 1 | . 1 . Low Security (%) 97 | 100 97 100 Level 1 2 | . 2 . Level 2 . | . . . Level 3 . | . . . Level 4 . | . . . Level 5 . | . . . High Security . | . . . Max Security . | . . . Squads Dispatched 4 | . 4 . Investigation 4 | . 4 . Extermination . | . . . Reinforcement . | . . . Assault . | . . . Garrison . | . . . Intercept . | . . . Construction Impeded . | . . . Haulers Reinforced . | . . . Stealth | -11 -10 -10 --------- Run | Scr Mat Min Distress Signals . | . . . Communications Jammed . | . . . Distress Signals . | . . . Times Spotted 28 | . 24 4 Peak Tracking Total 4 | . 3 4 Tactical Retreats 3 | . 2 1 Traps | -11 -10 -10 ------- Run | Scr Mat Min Traps Triggered 3 | . 3 . Indirectly . | . . . Trap Hack Attempts . | . . . Triggered . | . . . Disarmed . | . . . Reprogrammed . | . . . Reused . | . . . Traps Extracted . | . . . Installed . | . . . Triggered . | . . . Machines | -11 -10 -10 ---------- Run | Scr Mat Min Machines Disabled 1 | . 1 . Max in Single Turn 1 | . 1 . Machines Sabotaged . | . . . Garrisons Compromised . | . . . Overloaded Fab Kills . | . . . Fab Network Shutdowns . | . . . Hacking | -11 -10 -10 --------- Run | Scr Mat Min Machines Accessed 8 | . 8 . Terminals 8 | . 8 . Fabricators . | . . . Repair Stations . | . . . Recycling Units . | . . . Scanalyzers . | . . . Garrison Access . | . . . Total Hacks 33 | . 33 . Successful 19 | . 19 . Failed 14 | . 14 . Catastrophic 1 | . 1 . Database Lockouts . | . . . Manual 23 | . 23 . Terminals 33 | . 33 . Fabricators . | . . . Repair Stations . | . . . Recycling Units . | . . . Scanalyzers . | . . . Garrison Access . | . . . Terminal Hacks 11 | . 11 . Robot Analysis 1 | . 1 . Prototype ID Bank 2 | . 2 . Branch Access Points 2 | . 2 . Emergency Access Points 1 | . 1 . Alert Level 1 | . 1 . Unreport Threat 2 | . 2 . Hauler Manifests 1 | . 1 . Zone Layout 1 | . 1 . Fabricator Hacks . | . . . Repair Station Hacks . | . . . Recycling Unit Hacks . | . . . Scanalyzer . | . . . Garrison Access Hacks . | . . . Unauthorized Hacks 22 | . 22 . Terminals 8 | . 8 . Botnet 8 | . 8 . Fabricators . | . . . Repair Stations . | . . . Recycling Units . | . . . Scanalyzers . | . . . Garrison Access . | . . . Data Cores Recovered . | . . . Used . | . . . Hacking Detections 6 | . 6 . Full Trace Events 3 | . 3 . Feedback Events . | . . . Feedback Blocked . | . . . Robot Schematics Acquired . | . . . Robots Built . | . . . Matter . | . . . Time . | . . . Total Robot Build Rating . | . . . Part Schematics Acquired . | . . . Parts Built . | . . . Matter . | . . . Time . | . . . Total Part Build Rating . | . . . Parts Repaired . | . . . Time . | . . . Parts Recycled . | . . . Recycled Matter . | . . . Retrieved Matter . | . . . Retrieved Components . | . . . Parts Scanalyzed . | . . . Part Schematics Acquired . | . . . Parts Damaged . | . . . Bothacking | -11 -10 -10 ------------ Run | Scr Mat Min Used RIF Installer . | . . . Robots Hacked . | . . . Non-combat . | . . . Combat . | . . . Robot Hacks Applied . | . . . Relay Couplers Released . | . . . Robots Rewired 1 | 1 . . Allies Hacked . | . . . Hacks Repelled . | . . . Allies | -11 -10 -10 -------- Run | Scr Mat Min Total Allies 1 | 1 . . Largest Group 1 | 1 . . Highest-Rated Group 8 | 8 . . Highest-Rated Ally 8 | 8 . . Total Orders . | . . . Ally Attacks . | . . . Total Damage . | . . . Kills . | . . . Allies Corrupted . | . . . Allies Melted . | . . . Intel | -11 -10 -10 ------- Run | Scr Mat Min Robot Analysis Total 1 | . 1 . Derelict Logs Recovered 1 | . . 1 Drone Launches . | . . . Drone Recoveries . | . . . Exploration | -11 -10 -10 ------------- Run | Scr Mat Min Turns Passed 1718 | 217 1433 68 Spaces Moved 929 | 104 796 29 Core 11 | 5 6 . Treads . | . . . Legs 243 | . 243 . Wheels 675 | 99 547 29 Hover . | . . . Flight . | . . . Fastest Speed 50 | 50 80 100 Average Speed 101 | 78 105 100 Slowest Speed 250 | 80 250 100 Overloaded Moves . | . . . Propulsion Burnouts . | . . . Robots Hopped . | . . . Cave-ins Triggered . | . . . Exploration Rate (%) 36 | 5 97 7 Regions Visited 2 Branch Regions 1 Pre-discovered Areas 1 | . . 1 Known Exits Taken 1 | . 1 . Unknown Exits Taken 1 | 1 . . Scrap Searched . | . . . Spaces Dug . | . . . Terrain Destroyed 39 | . 39 . Melee . | . . . Projectile . | . . . AOE 39 | . 39 . Actions | -11 -10 -10 --------- Run | Scr Mat Min Total 1539 | 211 1273 55 Wait 384 | 59 313 12 Move 927 | 103 795 29 Hop . | . . . Pick Up 31 | 9 22 . Fast Attach 2 | . 2 . Attach 20 | 7 12 1 Detach . | . . . Swap 7 | . 7 . Drop 7 | . 7 . Fire 155 | 27 115 13 Melee . | . . . Ram . | . . . Kick . | . . . Crush . | . . . Escape Stasis . | . . . Rewire 6 | 6 . . Trap . | . . . Miscellaneous . | . . . Route ------- -11/Scrapyard -10/Materials (discovered 4 exits: [*Mat x3] / *Min) -10/Mines (discovered 1 exit: [*Mat]) History --------- Turn | Location | Event 11 | -11/Scrapyard | Discovered new exit (range 15) 218 | -11/Scrapyard | Entered Materials 312 | -10/Materials | Build established: Mutant 351 | -10/Materials | Discovered new exit (range 6) 667 | -10/Materials | Lost 4 parts (1p1n1u1w) 707 | -10/Materials | Discovered new exit (range 7) 987 | -10/Materials | Discovered new exit (range 16) 1146 | -10/Materials | Core integrity fell below 50% 1370 | -10/Materials | Identified exit to Mines 1484 | -10/Materials | Discovered new exit (range 16) 1651 | -10/Materials | Entered Mines 1672 | -10/Mines | Learned location of Recycling (-9) 1672 | -10/Mines | Discovered new exit (range 9) 1702 | -10/Mines | Core integrity fell below 20% 1719 | -10/Mines | Destroyed by G-47 Trooper with Particle Gun Last Messages --------------- Terminal linked with 7 systems. Awaiting botnet instructions. >>Access(Branch) Found 1 branch access point: (38,37) Mines Map updated. 01587_ R-06 Scavenger collects Ion Engine. 01619_ K-01 Serf cleans the Electrolysis Chamber. LOCATION=MINES GOAL=ESCAPE 01672_ Acquired derelict log, extracted data. World map updated: -9/Recycling. 01672_ EXIT=FOUND 01698_ Destroyed Lgt. Nuclear Core. 01704_ G-47 Trooper suffers critical hit. 01704_ Destroyed Aluminum Leg. 01713_ Grenade Launcher destroyed. 01713_ Lgt. Cannon destroyed. 01717_ Com. Wheel destroyed. 01719_ Ion Engine destroyed. Map ----- +----------------------------------------------------+ | ?????????????????????????????????????????????????? | | ?????????????????????????????????????????????????? | | ?????????????????????????????????????????????????? | | ?????????????????????????????????????????????????? | | ?????????????????????????????????????????????????? | | ?????????????????????????????????????????????????? | | ?????????????????????????????????????????????????? | | ?????????????????????????????????????????????????? | | ?????????????????????????????????????????????????? | | ?????????????????????????????????????????????????? | | ?????????????????????????????????????????????????? | | ?????????????????????????????????????????????????? | | ?????????????????????????????????????????????????? | | ?????????????????????????????????????????????????? | | ?????????????????????????????????????????????????? | | ?????????????????????????????????????????????????? | | ?????????????????????????????????????????????????? | | ?????????????????????????????????????????????????? | | ????????????????????????????#????????????????????? | | ??????????????????????????? #????????????????????? | | ??????????????????# ####### ###### #???????? | | ??????????????????# < ""??????????? | | ??????????????????###### ######### ""??????????? | | ???????????????????????# #???????????????????????? | | ??????????????##########g#####???????????????????? | | ????????? g @ ##??????????????????? | | ????????? g ##?????????????????? | | ???????????# ########### ##????????????????? | | ???????????#???????????????## ##???????????????? | | ????????????????????????????## #???????????????? | | ?????????????????????????????## #???????????????? | | ??????????????????????????????# #???????????????? | | ??????????????????????????????# #???????????????? | | ??????????????????????????????# #???????????????? | | ??????????????????????????????## #???????????????? | | ???????????????????????????????###???????????????? | | ?????????????????????????????????????????????????? | | ?????????????????????????????????????????????????? | | ?????????????????????????????????????????????????? | | ?????????????????????????????????????????????????? | | ?????????????????????????????????????????????????? | | ?????????????????????????????????????????????????? | | ?????????????????????????????????????????????????? | | ?????????????????????????????????????????????????? | | ?????????????????????????????????????????????????? | | | | | | | | | | | +----------------------------------------------------+ Best States ------------- Heat Dissipation 25 Energy Generation 10 Energy Capacity 250 Matter Stores 300 Matter Capacity 300 Sight Range 16 Terrain Scan Range 16 Terrain Scan Density 10 Evasion (%) 44 Item Schematics ----------------- None Robot Schematics ------------------ None Fabricated ------------ Nothing Alien Tech Used ----------------- None Achievements -------------- None Challenges ------------ None Game ------ Seed FusionQuantumApparatus Manual? 0 Play Time 00:22:01 Cumulative 30.0 hours Start 2019.11.20 @ 14:47:19 End 2019.11.20 @ 15:08:57 Sessions 1 Manual Loads 0 Difficulty Rogue Special Mode None Game No. 39 Rogue 39 Adventurer 0 Explorer 0 Win Type - Total 0 Types 0/0/0/0/0/0/0 Lore% 21 Gallery% 18 Achievement% 19 Wizard Run 0 Options --------- ASCII 0 Keyboard 0 Movement Mouse Keybinds 0 Fullscreen 1 Font 18/X11 Map View 76x50 Tactical HUD 1 Map Filters NONE Filters LOW_CONTRAST(13,24,33) Steam 1 RUN: 11af9ce5-874e-4385-86a1-639740faef72